[Event "Titled Tuesday Blitz July 13 2021"]
[White "Daianu, Cristian-Clement"]
[Black "Tanenbaum, Zachary"]
[WhiteFideId "1208926"]
[BlackFideId "2060850"]
[WhiteElo "2133"]
[BlackElo "2165"]
[Result "1-0"]
[Round "01"]
[TimeControl "180+1"]
[Date "2021.07.13"]
[WhiteClock "0:00:31"]
[BlackClock "0:00:02"]

1. e4 {[%clk 0:02:57]}  e5 {[%clk 0:02:59]} 2. Nf3 {[%clk 0:02:56]}  Nc6 {[%clk 0:03:00]} 3. Bc4 {[%clk 0:02:56]}  Nf6 {[%clk 0:02:59]} 4. d3 {[%clk 0:02:56]}  Be7 {[%clk 0:03:00]} 5. c3 {[%clk 0:02:56]}  O-O {[%clk 0:03:00]} 6. Bb3 {[%clk 0:02:57]}  d5 {[%clk 0:03:00]} 7. exd5 {[%clk 0:02:52]}  Nxd5 {[%clk 0:03:01]} 8. O-O {[%clk 0:02:52]}  Bg4 {[%clk 0:03:00]} 9. Re1 {[%clk 0:02:50]}  Nb6 {[%clk 0:02:52]} 10. h3 {[%clk 0:02:38]}  Bh5 {[%clk 0:02:52]} 11. Nbd2 {[%clk 0:02:31]}  Bd6 {[%clk 0:02:52]} 12. Nf1 {[%clk 0:02:30]}  Kh8 {[%clk 0:02:51]} 13. Ng3 {[%clk 0:02:30]}  Bg6 {[%clk 0:02:51]} 14. a4 {[%clk 0:02:21]}  a5 {[%clk 0:02:51]} 15. Bg5 {[%clk 0:02:17]}  f6 {[%clk 0:02:51]} 16. Be3 {[%clk 0:02:17]}  f5 {[%clk 0:02:43]} 17. Bg5 {[%clk 0:02:14]}  Qd7 {[%clk 0:02:41]} 18. Nh4 {[%clk 0:02:09]}  Bf7 {[%clk 0:02:18]} 19. Bxf7 {[%clk 0:01:59]}  Rxf7 {[%clk 0:02:19]} 20. Qh5 {[%clk 0:01:57]}  Kg8 {[%clk 0:01:57]} 21. Be3 {[%clk 0:01:50]}  Nd5 {[%clk 0:01:28]} 22. Nhxf5 {[%clk 0:01:46]}  g6 {[%clk 0:00:52]} 23. Nh6+ {[%clk 0:01:43]}  Kg7 {[%clk 0:00:52]} 24. Qg5 {[%clk 0:01:39]}  Be7 {[%clk 0:00:51]} 25. Nh5+ {[%clk 0:01:33]}  Kf8 {[%clk 0:00:49]} 26. Qg3 {[%clk 0:01:26]}  Nxe3 {[%clk 0:00:40]} 27. Nxf7 {[%clk 0:01:22]}  Nf5 {[%clk 0:00:34]} 28. Nxe5 {[%clk 0:01:21]}  Nxe5 {[%clk 0:00:30]} 29. Qxe5 {[%clk 0:01:22]}  Kf7 {[%clk 0:00:22]} 30. Ng3 {[%clk 0:01:16]}  Bf6 {[%clk 0:00:23]} 31. Qf4 {[%clk 0:01:06]}  Nh4 {[%clk 0:00:19]} 32. Ne4 {[%clk 0:01:03]}  Nf5 {[%clk 0:00:17]} 33. Nxf6 {[%clk 0:01:03]}  Kxf6 {[%clk 0:00:18]} 34. d4 {[%clk 0:01:03]}  Kg7 {[%clk 0:00:16]} 35. Re5 {[%clk 0:01:02]}  Rf8 {[%clk 0:00:16]} 36. Rae1 {[%clk 0:01:00]}  Rf7 {[%clk 0:00:15]} 37. Qg5 {[%clk 0:00:58]}  h6 {[%clk 0:00:14]} 38. Qg4 {[%clk 0:00:56]}  Qxa4 {[%clk 0:00:14]} 39. Re6 {[%clk 0:00:50]}  g5 {[%clk 0:00:12]} 40. Qh5 {[%clk 0:00:47]}  Rf6 {[%clk 0:00:09]} 41. Rxf6 {[%clk 0:00:42]}  Kxf6 {[%clk 0:00:10]} 42. g4 {[%clk 0:00:39]}  Nh4 {[%clk 0:00:07]} 43. Qxh6+ {[%clk 0:00:39]}  Kf7 {[%clk 0:00:08]} 44. Qh7+ {[%clk 0:00:33]}  Kf8 {[%clk 0:00:06]} 45. Qe7+ {[%clk 0:00:32]}  Kg8 {[%clk 0:00:06]} 46. Qxg5+ {[%clk 0:00:32]}  Kf7 {[%clk 0:00:04]} 47. Qxh4 {[%clk 0:00:32]}  Qc2 {[%clk 0:00:02]} 48. Re7+ {[%clk 0:00:30]}  Kf8 {[%clk 0:00:02]} 49. Qf6+ {[%clk 0:00:30]}  Kg8 {[%clk 0:00:02]} 50. Qg7# {[%clk 0:00:31]} 1-0


[Site "https://www.chess.com"]

[Event "Titled Tuesday Blitz July 13 2021"]
[White "Damjanovic, Vladimir"]
[Black "Popilski, Gil"]
[WhiteFideId "903795"]
[BlackFideId "2809060"]
[WhiteElo "2374"]
[BlackElo "2537"]
[Result "0-1"]
[Round "01"]
[TimeControl "180+1"]
[Date "2021.07.13"]
[WhiteClock "0:00:01"]
[BlackClock "0:00:28"]

1. e4 {[%clk 0:02:58]}  c5 {[%clk 0:02:59]} 2. Nf3 {[%clk 0:02:56]}  d6 {[%clk 0:02:59]} 3. d4 {[%clk 0:02:51]}  cxd4 {[%clk 0:02:59]} 4. Nxd4 {[%clk 0:02:52]}  Nf6 {[%clk 0:02:59]} 5. Nc3 {[%clk 0:02:52]}  e5 {[%clk 0:02:59]} 6. Bb5+ {[%clk 0:02:51]}  Nbd7 {[%clk 0:02:58]} 7. Nf5 {[%clk 0:02:49]}  a6 {[%clk 0:02:58]} 8. Bxd7+ {[%clk 0:02:47]}  Qxd7 {[%clk 0:02:57]} 9. O-O {[%clk 0:02:40]}  d5 {[%clk 0:02:18]} 10. Bg5 {[%clk 0:01:45]}  Nxe4 {[%clk 0:02:03]} 11. Nxe4 {[%clk 0:01:44]}  dxe4 {[%clk 0:02:03]} 12. Ng3 {[%clk 0:01:14]}  f6 {[%clk 0:01:21]} 13. Bd2 {[%clk 0:00:54]}  Qc6 {[%clk 0:01:12]} 14. Qh5+ {[%clk 0:00:30]}  g6 {[%clk 0:01:10]} 15. Qh4 {[%clk 0:00:31]}  f5 {[%clk 0:01:06]} 16. Bc3 {[%clk 0:00:16]}  Bg7 {[%clk 0:00:55]} 17. Bb4 {[%clk 0:00:16]}  Qf6 {[%clk 0:00:46]} 18. Qxf6 {[%clk 0:00:05]}  Bxf6 {[%clk 0:00:47]} 19. Bc3 {[%clk 0:00:05]}  Be6 {[%clk 0:00:44]} 20. Rfe1 {[%clk 0:00:05]}  Kf7 {[%clk 0:00:42]} 21. Rad1 {[%clk 0:00:02]}  Rhd8 {[%clk 0:00:41]} 22. Rxd8 {[%clk 0:00:02]}  Rxd8 {[%clk 0:00:40]} 23. Nf1 {[%clk 0:00:03]}  h5 {[%clk 0:00:34]} 24. a3 {[%clk 0:00:03]}  g5 {[%clk 0:00:33]} 25. h3 {[%clk 0:00:02]}  g4 {[%clk 0:00:32]} 26. hxg4 {[%clk 0:00:03]}  hxg4 {[%clk 0:00:33]} 27. Ng3 {[%clk 0:00:03]}  Rd5 {[%clk 0:00:30]} 28. Nh5 {[%clk 0:00:02]}  Bh8 {[%clk 0:00:30]} 29. g3 {[%clk 0:00:01]}  Rd8 {[%clk 0:00:29]} 30. Re2 {[%clk 0:00:01]}  Kg6 {[%clk 0:00:28]} 0-1


[Site "https://www.chess.com"]

[Event "Titled Tuesday Blitz July 13 2021"]
[White "Derraugh, Geordie"]
[Black "Gledura, Benjamin"]
[WhiteFideId "2603950"]
[BlackFideId "712779"]
[WhiteElo "2132"]
[BlackElo "2326"]
[Result "0-1"]
[Round "01"]
[TimeControl "180+1"]
[Date "2021.07.13"]
[WhiteClock "0:00:01"]
[BlackClock "0:00:42"]

1. e4 {[%clk 0:02:59]}  c5 {[%clk 0:02:58]} 2. Nf3 {[%clk 0:02:58]}  Nc6 {[%clk 0:02:58]} 3. Bb5 {[%clk 0:02:57]}  g6 {[%clk 0:02:55]} 4. Bxc6 {[%clk 0:02:57]}  dxc6 {[%clk 0:02:54]} 5. d3 {[%clk 0:02:56]}  Bg7 {[%clk 0:02:55]} 6. h3 {[%clk 0:02:56]}  Nf6 {[%clk 0:02:54]} 7. O-O {[%clk 0:02:56]}  O-O {[%clk 0:02:53]} 8. Nc3 {[%clk 0:02:56]}  b6 {[%clk 0:02:50]} 9. a4 {[%clk 0:02:56]}  a5 {[%clk 0:02:49]} 10. Re1 {[%clk 0:02:47]}  Qc7 {[%clk 0:02:48]} 11. Bg5 {[%clk 0:02:34]}  e5 {[%clk 0:02:47]} 12. Bh4 {[%clk 0:02:33]}  Nh5 {[%clk 0:02:46]} 13. Ne2 {[%clk 0:02:26]}  Bh8 {[%clk 0:02:44]} 14. c3 {[%clk 0:02:15]}  Ba6 {[%clk 0:02:38]} 15. g4 {[%clk 0:02:09]}  Ng7 {[%clk 0:02:37]} 16. Bg3 {[%clk 0:02:09]}  Ne6 {[%clk 0:02:34]} 17. d4 {[%clk 0:02:09]}  cxd4 {[%clk 0:02:27]} 18. cxd4 {[%clk 0:02:09]}  Rad8 {[%clk 0:02:21]} 19. Rc1 {[%clk 0:01:20]}  Bxe2 {[%clk 0:02:18]} 20. Rxe2 {[%clk 0:01:21]}  Nxd4 {[%clk 0:02:18]} 21. Nxd4 {[%clk 0:01:20]}  Qb7 {[%clk 0:02:12]} 22. Qc2 {[%clk 0:01:04]}  exd4 {[%clk 0:02:03]} 23. Qxc6 {[%clk 0:01:04]}  Qe7 {[%clk 0:02:01]} 24. Qxb6 {[%clk 0:00:44]}  d3 {[%clk 0:02:00]} 25. Rd2 {[%clk 0:00:33]}  Qxe4 {[%clk 0:01:59]} 26. Qxa5 {[%clk 0:00:31]}  Rd5 {[%clk 0:01:50]} 27. Qc7 {[%clk 0:00:22]}  Bxb2 {[%clk 0:01:42]} 28. Rcd1 {[%clk 0:00:20]}  Bg7 {[%clk 0:01:34]} 29. a5 {[%clk 0:00:16]}  Ra8 {[%clk 0:01:24]} 30. Qf4 {[%clk 0:00:16]}  f5 {[%clk 0:01:20]} 31. gxf5 {[%clk 0:00:15]}  gxf5 {[%clk 0:01:21]} 32. a6 {[%clk 0:00:12]}  Rxa6 {[%clk 0:01:17]} 33. Qb8+ {[%clk 0:00:12]}  Bf8 {[%clk 0:01:16]} 34. Qb3 {[%clk 0:00:07]}  Ra3 {[%clk 0:01:16]} 35. Qb8 {[%clk 0:00:03]}  Qe6 {[%clk 0:01:05]} 36. Qf4 {[%clk 0:00:02]}  Bh6 {[%clk 0:00:57]} 37. Qb8+ {[%clk 0:00:02]}  Kf7 {[%clk 0:00:57]} 38. Qb2 {[%clk 0:00:02]}  Bf8 {[%clk 0:00:44]} 39. Qb7+ {[%clk 0:00:01]}  Qd7 {[%clk 0:00:42]} 0-1


[Site "https://www.chess.com"]

[Event "Titled Tuesday Blitz July 13 2021"]
[White "Gabrielian, Artur"]
[Black "Gallegos Diaz, Carlos Alberto"]
[WhiteFideId "4131002"]
[BlackFideId "3900886"]
[WhiteElo "2523"]
[BlackElo "2362"]
[Result "1-0"]
[Round "01"]
[TimeControl "180+1"]
[Date "2021.07.13"]
[WhiteClock "0:01:45"]
[BlackClock "0:00:01"]

1. e4 {[%clk 0:03:00]}  d6 {[%clk 0:02:58]} 2. d4 {[%clk 0:03:00]}  Nf6 {[%clk 0:02:57]} 3. Nc3 {[%clk 0:02:57]}  c6 {[%clk 0:02:57]} 4. Nf3 {[%clk 0:02:48]}  Qa5 {[%clk 0:02:56]} 5. e5 {[%clk 0:02:41]}  Ne4 {[%clk 0:02:55]} 6. Bd3 {[%clk 0:02:36]}  Nxc3 {[%clk 0:02:51]} 7. bxc3 {[%clk 0:02:36]}  Bg4 {[%clk 0:02:27]} 8. exd6 {[%clk 0:02:18]}  Bxf3 {[%clk 0:02:07]} 9. gxf3 {[%clk 0:02:16]}  exd6 {[%clk 0:02:05]} 10. O-O {[%clk 0:02:10]}  Nd7 {[%clk 0:01:43]} 11. Re1+ {[%clk 0:02:09]}  Kd8 {[%clk 0:01:43]} 12. Rb1 {[%clk 0:02:09]}  Kc7 {[%clk 0:01:41]} 13. c4 {[%clk 0:02:06]}  Qh5 {[%clk 0:01:30]} 14. Bf4 {[%clk 0:02:04]}  Rd8 {[%clk 0:00:37]} 15. c5 {[%clk 0:02:02]}  f5 {[%clk 0:00:25]} 16. c3 {[%clk 0:01:58]}  Rb8 {[%clk 0:00:08]} 17. Re6 {[%clk 0:01:57]}  Qf7 {[%clk 0:00:04]} 18. Qe2 {[%clk 0:01:54]}  Kd8 {[%clk 0:00:03]} 19. cxd6 {[%clk 0:01:46]}  h6 {[%clk 0:00:01]} 20. Re1 {[%clk 0:01:45]} 1-0


[Site "https://www.chess.com"]

[Event "Titled Tuesday Blitz July 13 2021"]
[White "German, Sergio"]
[Black "Svane, Frederik"]
[WhiteFideId "105104"]
[BlackFideId "12923044"]
[WhiteElo "2410"]
[BlackElo "2459"]
[Result "0-1"]
[Round "01"]
[TimeControl "180+1"]
[Date "2021.07.13"]
[WhiteClock "0:00:12"]
[BlackClock "0:00:18"]

1. e4 {[%clk 0:02:59]}  c5 {[%clk 0:03:00]} 2. Nf3 {[%clk 0:02:59]}  a6 {[%clk 0:02:59]} 3. d4 {[%clk 0:02:58]}  cxd4 {[%clk 0:03:00]} 4. Nxd4 {[%clk 0:02:58]}  e5 {[%clk 0:03:00]} 5. Nb3 {[%clk 0:02:56]}  Nf6 {[%clk 0:03:00]} 6. Nc3 {[%clk 0:02:50]}  Nc6 {[%clk 0:02:57]} 7. a3 {[%clk 0:02:41]}  d6 {[%clk 0:02:55]} 8. Be2 {[%clk 0:02:40]}  Be7 {[%clk 0:02:55]} 9. O-O {[%clk 0:02:39]}  O-O {[%clk 0:02:55]} 10. Be3 {[%clk 0:02:31]}  Be6 {[%clk 0:02:55]} 11. Bf3 {[%clk 0:02:17]}  Na5 {[%clk 0:02:19]} 12. Nxa5 {[%clk 0:02:14]}  Qxa5 {[%clk 0:02:20]} 13. Qd2 {[%clk 0:02:08]}  Qc7 {[%clk 0:01:59]} 14. Rfd1 {[%clk 0:02:05]}  Rac8 {[%clk 0:01:53]} 15. Rac1 {[%clk 0:01:58]}  b5 {[%clk 0:01:43]} 16. h3 {[%clk 0:01:29]}  Qb7 {[%clk 0:01:36]} 17. Bg5 {[%clk 0:01:22]}  Rfd8 {[%clk 0:00:49]} 18. Qd3 {[%clk 0:00:45]}  Nd7 {[%clk 0:00:13]} 19. Bxe7 {[%clk 0:00:42]}  Nc5 {[%clk 0:00:13]} 20. Qe3 {[%clk 0:00:28]}  Qxe7 {[%clk 0:00:13]} 21. Nd5 {[%clk 0:00:26]}  Qb7 {[%clk 0:00:07]} 22. Rb1 {[%clk 0:00:17]}  Na4 {[%clk 0:00:04]} 23. c3 {[%clk 0:00:11]}  Rb8 {[%clk 0:00:03]} 24. Rd2 {[%clk 0:00:11]}  Nb6 {[%clk 0:00:04]} 25. Nxb6 {[%clk 0:00:10]}  Qxb6 {[%clk 0:00:04]} 26. Qxb6 {[%clk 0:00:10]}  Rxb6 {[%clk 0:00:05]} 27. Rbd1 {[%clk 0:00:10]}  Kf8 {[%clk 0:00:06]} 28. Kf1 {[%clk 0:00:10]}  Ke7 {[%clk 0:00:06]} 29. Ke2 {[%clk 0:00:10]}  Rdb8 {[%clk 0:00:07]} 30. Ke3 {[%clk 0:00:09]}  a5 {[%clk 0:00:07]} 31. h4 {[%clk 0:00:09]}  h6 {[%clk 0:00:07]} 32. g3 {[%clk 0:00:09]}  Rc8 {[%clk 0:00:05]} 33. Be2 {[%clk 0:00:08]}  Rcc6 {[%clk 0:00:05]} 34. Bf1 {[%clk 0:00:08]}  Bb3 {[%clk 0:00:05]} 35. Rc1 {[%clk 0:00:08]}  b4 {[%clk 0:00:06]} 36. axb4 {[%clk 0:00:07]}  axb4 {[%clk 0:00:06]} 37. c4 {[%clk 0:00:06]}  Rc5 {[%clk 0:00:06]} 38. Rd3 {[%clk 0:00:05]}  Bxc4 {[%clk 0:00:06]} 39. Rdd1 {[%clk 0:00:04]}  Rbc6 {[%clk 0:00:05]} 40. Bxc4 {[%clk 0:00:03]}  Rxc4 {[%clk 0:00:06]} 41. Rxc4 {[%clk 0:00:03]}  Rxc4 {[%clk 0:00:07]} 42. Ra1 {[%clk 0:00:03]}  Rc2 {[%clk 0:00:07]} 43. Ra7+ {[%clk 0:00:02]}  Ke6 {[%clk 0:00:07]} 44. f4 {[%clk 0:00:03]}  Rxb2 {[%clk 0:00:05]} 45. f5+ {[%clk 0:00:03]}  Kf6 {[%clk 0:00:06]} 46. Rd7 {[%clk 0:00:02]}  Rb3+ {[%clk 0:00:06]} 47. Kf2 {[%clk 0:00:02]}  Rd3 {[%clk 0:00:06]} 48. Ke2 {[%clk 0:00:02]}  Rd4 {[%clk 0:00:07]} 49. Ke3 {[%clk 0:00:02]}  g6 {[%clk 0:00:06]} 50. fxg6 {[%clk 0:00:02]}  fxg6 {[%clk 0:00:07]} 51. Rb7 {[%clk 0:00:02]}  h5 {[%clk 0:00:07]} 52. Rb6 {[%clk 0:00:02]}  Rc4 {[%clk 0:00:08]} 53. Rxd6+ {[%clk 0:00:01]}  Kg7 {[%clk 0:00:08]} 54. Rb6 {[%clk 0:00:02]}  Rc3+ {[%clk 0:00:08]} 55. Kf2 {[%clk 0:00:02]}  b3 {[%clk 0:00:09]} 56. Rb7+ {[%clk 0:00:03]}  Kf6 {[%clk 0:00:09]} 57. Rb6+ {[%clk 0:00:03]}  Kf7 {[%clk 0:00:10]} 58. Rb7+ {[%clk 0:00:03]}  Ke6 {[%clk 0:00:10]} 59. Rb6+ {[%clk 0:00:04]}  Kd7 {[%clk 0:00:11]} 60. Rxg6 {[%clk 0:00:04]}  Kc7 {[%clk 0:00:11]} 61. Rg7+ {[%clk 0:00:04]}  Kb6 {[%clk 0:00:12]} 62. Rd7 {[%clk 0:00:05]}  b2 {[%clk 0:00:11]} 63. Rd1 {[%clk 0:00:06]}  Rc1 {[%clk 0:00:12]} 64. Rd8 {[%clk 0:00:07]}  b1=Q {[%clk 0:00:11]} 65. Rb8+ {[%clk 0:00:07]}  Kc5 {[%clk 0:00:12]} 66. Rxb1 {[%clk 0:00:08]}  Rxb1 {[%clk 0:00:13]} 67. g4 {[%clk 0:00:08]}  hxg4 {[%clk 0:00:13]} 68. Kg3 {[%clk 0:00:09]}  Kd6 {[%clk 0:00:13]} 69. Kxg4 {[%clk 0:00:09]}  Ke6 {[%clk 0:00:14]} 70. Kg5 {[%clk 0:00:09]}  Rg1+ {[%clk 0:00:15]} 71. Kh6 {[%clk 0:00:10]}  Kf6 {[%clk 0:00:15]} 72. h5 {[%clk 0:00:10]}  Rg5 {[%clk 0:00:16]} 73. Kh7 {[%clk 0:00:10]}  Rxh5+ {[%clk 0:00:16]} 74. Kg8 {[%clk 0:00:11]}  Rh6 {[%clk 0:00:17]} 75. Kf8 {[%clk 0:00:12]}  Rh8# {[%clk 0:00:18]} 0-1


[Site "https://www.chess.com"]

[Event "Titled Tuesday Blitz July 13 2021"]
[White "Gochelashvili, David"]
[Black "Paravyan, David"]
[WhiteFideId "4161203"]
[BlackFideId "4194985"]
[WhiteElo "2408"]
[BlackElo "2562"]
[Result "0-1"]
[Round "01"]
[TimeControl "180+1"]
[Date "2021.07.13"]
[WhiteClock "0:00:14"]
[BlackClock "0:01:04"]

1. e4 {[%clk 0:02:45]}  c6 {[%clk 0:02:57]} 2. d4 {[%clk 0:02:44]}  d5 {[%clk 0:02:57]} 3. Nc3 {[%clk 0:02:45]}  dxe4 {[%clk 0:02:58]} 4. Nxe4 {[%clk 0:02:45]}  Nf6 {[%clk 0:02:58]} 5. Nxf6+ {[%clk 0:02:41]}  exf6 {[%clk 0:02:59]} 6. c3 {[%clk 0:02:41]}  Bd6 {[%clk 0:02:59]} 7. Bd3 {[%clk 0:02:39]}  O-O {[%clk 0:02:59]} 8. Qc2 {[%clk 0:02:38]}  Re8+ {[%clk 0:02:59]} 9. Ne2 {[%clk 0:02:37]}  h6 {[%clk 0:02:58]} 10. O-O {[%clk 0:02:33]}  Nd7 {[%clk 0:02:58]} 11. Bf4 {[%clk 0:02:21]}  Nf8 {[%clk 0:02:43]} 12. Bxd6 {[%clk 0:02:10]}  Qxd6 {[%clk 0:02:44]} 13. Ng3 {[%clk 0:02:09]}  Bd7 {[%clk 0:02:43]} 14. Rae1 {[%clk 0:02:06]}  Qc7 {[%clk 0:02:29]} 15. Re3 {[%clk 0:01:40]}  a5 {[%clk 0:02:26]} 16. Rfe1 {[%clk 0:01:38]}  Rxe3 {[%clk 0:02:26]} 17. fxe3 {[%clk 0:01:38]}  a4 {[%clk 0:02:26]} 18. a3 {[%clk 0:01:37]}  Qb6 {[%clk 0:02:08]} 19. Ne4 {[%clk 0:01:33]}  Ne6 {[%clk 0:02:04]} 20. Qf2 {[%clk 0:01:33]}  Ng5 {[%clk 0:01:33]} 21. Nc5 {[%clk 0:01:31]}  Bc8 {[%clk 0:01:18]} 22. e4 {[%clk 0:01:29]}  Ne6 {[%clk 0:01:18]} 23. e5 {[%clk 0:01:29]}  Nxc5 {[%clk 0:01:05]} 24. dxc5 {[%clk 0:01:23]}  Qd8 {[%clk 0:01:05]} 25. Qd2 {[%clk 0:00:57]}  Bf5 {[%clk 0:01:04]} 26. Rd1 {[%clk 0:00:53]}  Qxd3 {[%clk 0:01:04]} 27. Qxd3 {[%clk 0:00:53]}  Bxd3 {[%clk 0:01:05]} 28. Rxd3 {[%clk 0:00:53]}  fxe5 {[%clk 0:01:05]} 29. Rd7 {[%clk 0:00:54]}  Ra5 {[%clk 0:01:05]} 30. Rxb7 {[%clk 0:00:50]}  Rxc5 {[%clk 0:01:05]} 31. Kf2 {[%clk 0:00:49]}  Rb5 {[%clk 0:01:03]} 32. Rxb5 {[%clk 0:00:36]}  cxb5 {[%clk 0:01:04]} 33. Ke3 {[%clk 0:00:35]}  f5 {[%clk 0:01:04]} 34. Kd3 {[%clk 0:00:15]}  Kf7 {[%clk 0:01:03]} 35. c4 {[%clk 0:00:13]}  e4+ {[%clk 0:01:02]} 36. Kd4 {[%clk 0:00:14]}  bxc4 {[%clk 0:01:03]} 37. Kxc4 {[%clk 0:00:14]}  e3 {[%clk 0:01:03]} 38. Kd3 {[%clk 0:00:14]}  f4 {[%clk 0:01:04]} 0-1


[Site "https://www.chess.com"]

[Event "Titled Tuesday Blitz July 13 2021"]
[White "Gogolev, Artem"]
[Black "Weetik, Vjacheslav"]
[WhiteFideId "4116615"]
[BlackFideId "4153472"]
[WhiteElo "2191"]
[BlackElo "2469"]
[Result "0-1"]
[Round "01"]
[TimeControl "180+1"]
[Date "2021.07.13"]
[WhiteClock "0:01:24"]
[BlackClock "0:00:35"]

1. d4 {[%clk 0:03:00]}  d5 {[%clk 0:02:58]} 2. c4 {[%clk 0:02:59]}  e6 {[%clk 0:02:59]} 3. g3 {[%clk 0:02:59]}  c6 {[%clk 0:02:59]} 4. Bg2 {[%clk 0:02:58]}  Bd6 {[%clk 0:02:58]} 5. Nd2 {[%clk 0:02:57]}  f5 {[%clk 0:02:58]} 6. Ngf3 {[%clk 0:02:57]}  Nf6 {[%clk 0:02:59]} 7. O-O {[%clk 0:02:57]}  O-O {[%clk 0:02:59]} 8. Qc2 {[%clk 0:02:57]}  b6 {[%clk 0:02:55]} 9. b3 {[%clk 0:02:52]}  a5 {[%clk 0:02:48]} 10. a4 {[%clk 0:02:43]}  Na6 {[%clk 0:02:42]} 11. Ne5 {[%clk 0:02:42]}  Nb4 {[%clk 0:02:38]} 12. Qb1 {[%clk 0:02:41]}  Bb7 {[%clk 0:02:27]} 13. Ndf3 {[%clk 0:02:36]}  Ne4 {[%clk 0:02:25]} 14. Ba3 {[%clk 0:02:22]}  Qe7 {[%clk 0:02:13]} 15. Qb2 {[%clk 0:02:18]}  f4 {[%clk 0:02:09]} 16. Nd2 {[%clk 0:02:14]}  c5 {[%clk 0:01:52]} 17. Nxe4 {[%clk 0:02:02]}  dxe4 {[%clk 0:01:52]} 18. Bxb4 {[%clk 0:01:54]}  axb4 {[%clk 0:01:47]} 19. gxf4 {[%clk 0:01:52]}  Rxf4 {[%clk 0:01:23]} 20. e3 {[%clk 0:01:52]}  Rh4 {[%clk 0:01:13]} 21. f4 {[%clk 0:01:43]}  exf3 {[%clk 0:01:11]} 22. Bxf3 {[%clk 0:01:37]}  cxd4 {[%clk 0:00:46]} 23. Bxb7 {[%clk 0:01:24]}  Qxb7 {[%clk 0:00:44]} 24. exd4 {[%clk 0:01:24]}  Bxe5 {[%clk 0:00:35]} 25. dxe5 {[%clk 0:01:24]}  Rg4+ {[%clk 0:00:35]} 0-1


[Site "https://www.chess.com"]

[Event "Titled Tuesday Blitz July 13 2021"]
[White "Goltsev, Dmitry"]
[Black "Hamley, Ryan"]
[WhiteFideId "24176710"]
[BlackFideId "30959497"]
[WhiteElo "2366"]
[BlackElo "2412"]
[Result "1-0"]
[Round "01"]
[TimeControl "180+1"]
[Date "2021.07.13"]
[WhiteClock "0:01:33"]
[BlackClock "0:00:03"]

1. e4 {[%clk 0:02:58]}  c5 {[%clk 0:02:58]} 2. Nf3 {[%clk 0:02:57]}  d6 {[%clk 0:02:59]} 3. d4 {[%clk 0:02:56]}  cxd4 {[%clk 0:03:00]} 4. Nxd4 {[%clk 0:02:56]}  Nf6 {[%clk 0:03:00]} 5. Nc3 {[%clk 0:02:54]}  a6 {[%clk 0:03:01]} 6. Be2 {[%clk 0:02:54]}  e5 {[%clk 0:03:00]} 7. Nb3 {[%clk 0:02:54]}  Be6 {[%clk 0:03:01]} 8. O-O {[%clk 0:02:54]}  Be7 {[%clk 0:03:01]} 9. f4 {[%clk 0:02:54]}  Nbd7 {[%clk 0:02:53]} 10. f5 {[%clk 0:02:44]}  Bxb3 {[%clk 0:02:53]} 11. axb3 {[%clk 0:02:45]}  b5 {[%clk 0:02:38]} 12. g4 {[%clk 0:02:41]}  h6 {[%clk 0:02:36]} 13. b4 {[%clk 0:02:26]}  Nb6 {[%clk 0:02:32]} 14. b3 {[%clk 0:02:24]}  d5 {[%clk 0:02:28]} 15. exd5 {[%clk 0:02:23]}  Bxb4 {[%clk 0:02:25]} 16. Bb2 {[%clk 0:02:23]}  Bxc3 {[%clk 0:01:58]} 17. Bxc3 {[%clk 0:02:24]}  Nfxd5 {[%clk 0:01:58]} 18. Ba5 {[%clk 0:02:20]}  Qg5 {[%clk 0:01:10]} 19. Bf3 {[%clk 0:02:12]}  Rd8 {[%clk 0:00:58]} 20. Qe2 {[%clk 0:02:04]}  O-O {[%clk 0:00:43]} 21. Rfd1 {[%clk 0:01:56]}  Nf4 {[%clk 0:00:41]} 22. Qxe5 {[%clk 0:01:54]}  Rde8 {[%clk 0:00:26]} 23. Qd4 {[%clk 0:01:49]}  Nbd5 {[%clk 0:00:24]} 24. Bd2 {[%clk 0:01:46]}  Nh3+ {[%clk 0:00:09]} 25. Kg2 {[%clk 0:01:41]}  Ndf4+ {[%clk 0:00:10]} 26. Kg3 {[%clk 0:01:41]}  h5 {[%clk 0:00:09]} 27. Bxf4 {[%clk 0:01:40]}  Nxf4 {[%clk 0:00:09]} 28. h4 {[%clk 0:01:39]}  Ne2+ {[%clk 0:00:05]} 29. Bxe2 {[%clk 0:01:39]}  Re3+ {[%clk 0:00:04]} 30. Bf3 {[%clk 0:01:37]}  Qe7 {[%clk 0:00:02]} 31. Rd3 {[%clk 0:01:34]}  Rxd3 {[%clk 0:00:02]} 32. cxd3 {[%clk 0:01:33]}  hxg4 {[%clk 0:00:03]} 1-0


[Site "https://www.chess.com"]

[Event "Titled Tuesday Blitz July 13 2021"]
[White "Holt, Conrad"]
[Black "Gabdushev, Ruslan"]
[WhiteFideId "2034387"]
[BlackFideId "4137833"]
[WhiteElo "2586"]
[BlackElo "2312"]
[Result "0-1"]
[Round "01"]
[TimeControl "180+1"]
[Date "2021.07.13"]
[WhiteClock "0:00:01"]
[BlackClock "0:00:19"]

1. d4 {[%clk 0:03:00]}  Nc6 {[%clk 0:02:59]} 2. e4 {[%clk 0:02:57]}  d5 {[%clk 0:02:57]} 3. Nc3 {[%clk 0:02:57]}  e5 {[%clk 0:02:56]} 4. Bb5 {[%clk 0:02:53]}  exd4 {[%clk 0:02:43]} 5. Qxd4 {[%clk 0:02:50]}  dxe4 {[%clk 0:02:40]} 6. Qxd8+ {[%clk 0:02:44]}  Kxd8 {[%clk 0:02:39]} 7. Bg5+ {[%clk 0:02:43]}  f6 {[%clk 0:02:33]} 8. O-O-O {[%clk 0:02:41]}  Ke8 {[%clk 0:02:23]} 9. Bf4 {[%clk 0:02:40]}  Bd7 {[%clk 0:02:14]} 10. Nd5 {[%clk 0:02:37]}  Rc8 {[%clk 0:02:04]} 11. Nxc7+ {[%clk 0:02:35]}  Ke7 {[%clk 0:01:56]} 12. Ne2 {[%clk 0:02:25]}  Nh6 {[%clk 0:01:38]} 13. Rxd7+ {[%clk 0:02:14]}  Kxd7 {[%clk 0:01:37]} 14. Rd1+ {[%clk 0:02:14]}  Ke7 {[%clk 0:01:32]} 15. Bd6+ {[%clk 0:02:14]}  Kf7 {[%clk 0:01:29]} 16. Bc4+ {[%clk 0:02:14]}  Kg6 {[%clk 0:01:28]} 17. Nf4+ {[%clk 0:02:15]}  Kg5 {[%clk 0:01:25]} 18. h4+ {[%clk 0:02:09]}  Kxh4 {[%clk 0:01:16]} 19. Rh1+ {[%clk 0:02:07]}  Kg4 {[%clk 0:01:16]} 20. Rxh6 {[%clk 0:01:39]}  Bxd6 {[%clk 0:01:06]} 21. Be6+ {[%clk 0:00:44]}  Kxf4 {[%clk 0:01:03]} 22. Rh5 {[%clk 0:00:40]}  g5 {[%clk 0:00:53]} 23. Nb5 {[%clk 0:00:29]}  Rcd8 {[%clk 0:00:44]} 24. Nc3 {[%clk 0:00:19]}  Ke5 {[%clk 0:00:40]} 25. Bg4 {[%clk 0:00:16]}  Bb4 {[%clk 0:00:39]} 26. Nb1 {[%clk 0:00:14]}  Rhg8 {[%clk 0:00:26]} 27. g3 {[%clk 0:00:09]}  f5 {[%clk 0:00:24]} 28. Be2 {[%clk 0:00:10]}  Rg7 {[%clk 0:00:22]} 29. c3 {[%clk 0:00:09]}  Bc5 {[%clk 0:00:22]} 30. Rh2 {[%clk 0:00:09]}  e3 {[%clk 0:00:21]} 31. fxe3 {[%clk 0:00:08]}  Bxe3+ {[%clk 0:00:20]} 32. Kc2 {[%clk 0:00:09]}  f4 {[%clk 0:00:20]} 33. gxf4+ {[%clk 0:00:07]}  Bxf4 {[%clk 0:00:20]} 34. Rh5 {[%clk 0:00:03]}  Ke4 {[%clk 0:00:20]} 35. Bg4 {[%clk 0:00:02]}  Ne5 {[%clk 0:00:19]} 36. Be2 {[%clk 0:00:01]}  g4 {[%clk 0:00:19]} 0-1


[Site "https://www.chess.com"]